[Event "*** Titled Tuesday Blitz"]
[Site "Chess.com"]
[Date "2020.12.29"]
[Round "9"]
[White "Witik"]
[Black "vladgoncharov"]
[Result "1-0"]
[WhiteElo "2719"]
[BlackElo "2556"]
[TimeControl "180+1"]
[EndTime "11:46:01 PST"]
[Termination "Witik won on time"]

1. d4 {[%clk 0:02:56.4]} 1... Nf6 {[%clk 0:02:58.3]} 2. c4 {[%clk 0:02:54.8]}
2... e6 {[%clk 0:02:57.6]} 3. Nf3 {[%clk 0:02:54.8]} 3... b6 {[%clk 0:02:57.1]}
4. a3 {[%clk 0:02:54.1]} 4... Bb7 {[%clk 0:02:56.4]} 5. Nc3 {[%clk 0:02:53.7]}
5... Be7 {[%clk 0:02:55.7]} 6. d5 {[%clk 0:02:53.4]} 6... O-O {[%clk 0:02:52.8]}
7. e4 {[%clk 0:02:52]} 7... exd5 {[%clk 0:02:52.2]} 8. cxd5 {[%clk 0:02:43.3]}
8... a5 {[%clk 0:02:49.6]} 9. e5 {[%clk 0:02:38]} 9... Ne8 {[%clk 0:02:41.7]}
10. Bc4 {[%clk 0:02:28.8]} 10... d6 {[%clk 0:02:41.3]} 11. e6 {[%clk 0:02:28.5]}
11... fxe6 {[%clk 0:02:39.3]} 12. Nd4 {[%clk 0:02:10.6]} 12... Bf6 {[%clk
0:01:59.9]} 13. Nxe6 {[%clk 0:02:02.6]} 13... Bxc3+ {[%clk 0:01:58.9]} 14. bxc3
{[%clk 0:02:02.7]} 14... Qh4 {[%clk 0:01:57.5]} 15. Qd4 {[%clk 0:01:50.4]} 15...
Qxd4 {[%clk 0:01:47.2]} 16. cxd4 {[%clk 0:01:49.7]} 16... Rf7 {[%clk 0:01:47]}
17. Bg5 {[%clk 0:01:41.4]} 17... Nf6 {[%clk 0:01:37.2]} 18. Bxf6 {[%clk
0:01:40.6]} 18... gxf6 {[%clk 0:01:38.1]} 19. Rc1 {[%clk 0:01:32.3]} 19... Re7
{[%clk 0:01:34.7]} 20. Kd2 {[%clk 0:01:32]} 20... Ra7 {[%clk 0:01:26.2]} 21. Rc3
{[%clk 0:01:30.2]} 21... Bc8 {[%clk 0:01:25.9]} 22. f4 {[%clk 0:01:16.4]} 22...
Bxe6 {[%clk 0:01:11.5]} 23. dxe6 {[%clk 0:01:16.5]} 23... c6 {[%clk 0:01:10.4]}
24. f5 {[%clk 0:01:04.3]} 24... d5 {[%clk 0:01:10.2]} 25. Bxd5 {[%clk
0:01:00.5]} 25... cxd5 {[%clk 0:01:06.5]} 26. Rc8+ {[%clk 0:00:59.1]} 26... Kg7
{[%clk 0:01:07.4]} 27. Rxb8 {[%clk 0:00:59.2]} 27... Rac7 {[%clk 0:01:06.6]} 28.
Rc1 {[%clk 0:00:56.8]} 28... Rxc1 {[%clk 0:01:02.7]} 29. Kxc1 {[%clk 0:00:56.9]}
29... Rc7+ {[%clk 0:01:02.6]} 30. Kd2 {[%clk 0:00:55.6]} 30... Kh6 {[%clk
0:01:01.1]} 31. Rxb6 {[%clk 0:00:54.9]} 31... Kg5 {[%clk 0:01:01.3]} 32. Rb5
{[%clk 0:00:44.8]} 32... Kxf5 {[%clk 0:01:00.6]} 33. Rxd5+ {[%clk 0:00:45.1]}
33... Kxe6 {[%clk 0:00:58.5]} 34. Rxa5 {[%clk 0:00:45.2]} 34... Rc4 {[%clk
0:00:57.9]} 35. Kd3 {[%clk 0:00:43.9]} 35... Rc1 {[%clk 0:00:57.9]} 36. Rh5
{[%clk 0:00:37.4]} 36... Ra1 {[%clk 0:00:57]} 37. Rxh7 {[%clk 0:00:33.4]} 37...
Rxa3+ {[%clk 0:00:56.7]} 38. Ke4 {[%clk 0:00:33.3]} 38... Ra2 {[%clk 0:00:56.4]}
39. Rg7 {[%clk 0:00:31.2]} 39... Re2+ {[%clk 0:00:54.3]} 40. Kf3 {[%clk
0:00:30.8]} 40... Rd2 {[%clk 0:00:52]} 41. Ke3 {[%clk 0:00:31.1]} 41... Rd1
{[%clk 0:00:51.4]} 42. h4 {[%clk 0:00:31.1]} 42... Rh1 {[%clk 0:00:51]} 43. g3
{[%clk 0:00:30.4]} 43... Re1+ {[%clk 0:00:50.8]} 44. Kd2 {[%clk 0:00:28.3]}
44... Rh1 {[%clk 0:00:50.7]} 45. Ke3 {[%clk 0:00:27]} 45... Re1+ {[%clk
0:00:50.1]} 46. Kf3 {[%clk 0:00:25.9]} 46... Rd1 {[%clk 0:00:49.9]} 47. Rg4
{[%clk 0:00:23.7]} 47... Kf5 {[%clk 0:00:41]} 48. Rf4+ {[%clk 0:00:15.8]} 48...
Kg6 {[%clk 0:00:40.6]} 49. Ke4 {[%clk 0:00:15]} 49... Re1+ {[%clk 0:00:39.1]}
50. Kd5 {[%clk 0:00:15.2]} 50... Re3 {[%clk 0:00:39.2]} 51. g4 {[%clk 0:00:15]}
51... Rh3 {[%clk 0:00:39.3]} 52. h5+ {[%clk 0:00:12.6]} 52... Kg5 {[%clk
0:00:39.6]} 53. Re4 {[%clk 0:00:10.7]} 53... f5 {[%clk 0:00:35.8]} 54. gxf5
{[%clk 0:00:10.1]} 54... Kxf5 {[%clk 0:00:36.1]} 55. Re5+ {[%clk 0:00:10.4]}
55... Kf6 {[%clk 0:00:36.4]} 56. Ke4 {[%clk 0:00:07.6]} 56... Rh4+ {[%clk
0:00:35.9]} 57. Kd5 {[%clk 0:00:07.9]} 57... Rh1 {[%clk 0:00:35.4]} 58. Re6+
{[%clk 0:00:07.7]} 58... Kf7 {[%clk 0:00:34.8]} 59. h6 {[%clk 0:00:08.1]} 59...
Rh5+ {[%clk 0:00:33]} 60. Kd6 {[%clk 0:00:08.2]} 60... Ra5 {[%clk 0:00:32]} 61.
d5 {[%clk 0:00:08.7]} 61... Ra1 {[%clk 0:00:25.9]} 62. h7 {[%clk 0:00:07.6]}
62... Rh1 {[%clk 0:00:25.1]} 63. Re7+ {[%clk 0:00:08]} 63... Kf6 {[%clk
0:00:22.5]} 64. Kd7 {[%clk 0:00:06.7]} 64... Rh2 {[%clk 0:00:20.4]} 65. d6
{[%clk 0:00:07.1]} 65... Rh3 {[%clk 0:00:19.9]} 66. Ke8 {[%clk 0:00:06.4]} 1-0

[Event "*** Titled Tuesday Blitz"]
[Site "Chess.com"]
[Date "2020.12.29"]
[Round "9"]
[White "zajka-molotok"]
[Black "rynos0411"]
[Result "0-1"]
[WhiteElo "2480"]
[BlackElo "2355"]
[TimeControl "180+1"]
[EndTime "11:46:05 PST"]
[Termination "rynos0411 won on time"]

1. e4 {[%clk 0:03:00.9]} 1... e5 {[%clk 0:02:54.1]} 2. Nf3 {[%clk 0:03:00.1]}
2... Nc6 {[%clk 0:02:52.7]} 3. Bb5 {[%clk 0:03:00.1]} 3... Nf6 {[%clk
0:02:51.1]} 4. Qe2 {[%clk 0:02:49.3]} 4... d6 {[%clk 0:02:45]} 5. c3 {[%clk
0:02:43.3]} 5... Qe7 {[%clk 0:02:31.8]} 6. O-O {[%clk 0:02:40.3]} 6... g6 {[%clk
0:02:30.6]} 7. Re1 {[%clk 0:02:38.9]} 7... Bg7 {[%clk 0:02:30.5]} 8. d4 {[%clk
0:02:39.1]} 8... O-O {[%clk 0:02:30.2]} 9. d5 {[%clk 0:02:32.3]} 9... Nb8 {[%clk
0:02:28.6]} 10. c4 {[%clk 0:02:32.5]} 10... Bd7 {[%clk 0:02:24.2]} 11. Nc3
{[%clk 0:02:29.7]} 11... a6 {[%clk 0:02:23.5]} 12. Bxd7 {[%clk 0:02:26.9]} 12...
Nbxd7 {[%clk 0:02:24.4]} 13. Be3 {[%clk 0:02:04.2]} 13... h6 {[%clk 0:02:17.4]}
14. Nd2 {[%clk 0:02:02.7]} 14... Nh7 {[%clk 0:02:11.8]} 15. b4 {[%clk
0:01:57.4]} 15... f5 {[%clk 0:02:11.6]} 16. f3 {[%clk 0:01:55.1]} 16... f4
{[%clk 0:02:07.2]} 17. Bf2 {[%clk 0:01:54.1]} 17... g5 {[%clk 0:02:02]} 18. Nb3
{[%clk 0:01:14.3]} 18... h5 {[%clk 0:01:45.7]} 19. c5 {[%clk 0:01:12.8]} 19...
b6 {[%clk 0:01:35.1]} 20. cxd6 {[%clk 0:01:07.8]} 20... cxd6 {[%clk 0:01:11.3]}
21. Rac1 {[%clk 0:01:05.5]} 21... Nhf6 {[%clk 0:01:04.1]} 22. Na4 {[%clk
0:01:04]} 22... b5 {[%clk 0:01:03.9]} 23. Nb6 {[%clk 0:01:03.4]} 23... Nxb6
{[%clk 0:01:04.1]} 24. Bxb6 {[%clk 0:01:04.1]} 24... Rfc8 {[%clk 0:01:04.4]} 25.
Na5 {[%clk 0:00:51.6]} 25... g4 {[%clk 0:01:01.1]} 26. Rc6 {[%clk 0:00:49.3]}
26... gxf3 {[%clk 0:00:56.1]} 27. gxf3 {[%clk 0:00:44.6]} 27... Ne8 {[%clk
0:00:39.8]} 28. Kh1 {[%clk 0:00:42.2]} 28... Rxc6 {[%clk 0:00:33]} 29. Nxc6
{[%clk 0:00:36.1]} 29... Qh4 {[%clk 0:00:28]} 30. Rg1 {[%clk 0:00:31]} 30... Rc8
{[%clk 0:00:19.3]} 31. Qg2 {[%clk 0:00:30.1]} 31... Qf6 {[%clk 0:00:17.4]} 32.
Qh3 {[%clk 0:00:23.8]} 32... Ra8 {[%clk 0:00:07.7]} 33. Qxh5 {[%clk 0:00:22.8]}
33... Qf7 {[%clk 0:00:03]} 34. Qg4 {[%clk 0:00:18.1]} 34... Nf6 {[%clk
0:00:03.3]} 35. Qg6 {[%clk 0:00:17.2]} 35... Qxg6 {[%clk 0:00:03.1]} 36. Rxg6
{[%clk 0:00:18.1]} 36... Kf7 {[%clk 0:00:04]} 37. Rg2 {[%clk 0:00:17.8]} 37...
Rh8 {[%clk 0:00:04.7]} 38. Kg1 {[%clk 0:00:17.2]} 38... Nd7 {[%clk 0:00:03.1]}
39. Bc7 {[%clk 0:00:15.9]} 39... Bf8 {[%clk 0:00:02.7]} 40. Nd8+ {[%clk
0:00:15.4]} 40... Ke8 {[%clk 0:00:02.8]} 41. Ne6 {[%clk 0:00:15.2]} 41... Be7
{[%clk 0:00:03.2]} 42. Ba5 {[%clk 0:00:13.5]} 42... Kf7 {[%clk 0:00:02.2]} 43.
Rg7+ {[%clk 0:00:13]} 43... Ke8 {[%clk 0:00:02.2]} 44. Rg6 {[%clk 0:00:11.8]}
44... Nf8 {[%clk 0:00:02.1]} 45. Nxf8 {[%clk 0:00:11.3]} 45... Kxf8 {[%clk
0:00:02.4]} 46. Kg2 {[%clk 0:00:11]} 46... Kf7 {[%clk 0:00:02.8]} 47. Rg4 {[%clk
0:00:10.7]} 47... Rc8 {[%clk 0:00:03.7]} 48. Kh3 {[%clk 0:00:10.7]} 48... Rc2
{[%clk 0:00:03.9]} 49. Rg2 {[%clk 0:00:10.7]} 49... Rc3 {[%clk 0:00:03.6]} 50.
Kg4 {[%clk 0:00:10.9]} 50... Rc8 {[%clk 0:00:03.4]} 51. h4 {[%clk 0:00:10.6]}
51... Rh8 {[%clk 0:00:03.5]} 52. h5 {[%clk 0:00:10]} 52... Rg8+ {[%clk 0:00:04]}
53. Kh3 {[%clk 0:00:09.9]} 53... Rh8 {[%clk 0:00:04.6]} 54. Rc2 {[%clk
0:00:07.5]} 54... Rxh5+ {[%clk 0:00:04.5]} 55. Kg2 {[%clk 0:00:07.7]} 55... Rg5+
{[%clk 0:00:04.1]} 56. Kf2 {[%clk 0:00:07.8]} 56... Rh5 {[%clk 0:00:05]} 57. Kg2
{[%clk 0:00:07.8]} 57... Rg5+ {[%clk 0:00:05.3]} 58. Kf1 {[%clk 0:00:08]} 58...
Rh5 {[%clk 0:00:06.2]} 59. Bb6 {[%clk 0:00:07.2]} 59... Rh1+ {[%clk 0:00:06.1]}
60. Bg1 {[%clk 0:00:07.2]} 60... Rh8 {[%clk 0:00:05.2]} 61. Rc6 {[%clk
0:00:06.6]} 61... Ra8 {[%clk 0:00:04.4]} 62. Ke2 {[%clk 0:00:05.9]} 62... a5
{[%clk 0:00:04.6]} 63. a3 {[%clk 0:00:02.9]} 63... axb4 {[%clk 0:00:04.8]} 64.
axb4 {[%clk 0:00:03.8]} 64... Ra2+ {[%clk 0:00:05.1]} 65. Kf1 {[%clk 0:00:03.7]}
65... Ra3 {[%clk 0:00:04.4]} 66. Kg2 {[%clk 0:00:03.4]} 66... Rb3 {[%clk
0:00:04]} 67. Rb6 {[%clk 0:00:02.4]} 67... Rxb4 {[%clk 0:00:04.3]} 68. Rb7
{[%clk 0:00:02.9]} 68... Rb2+ {[%clk 0:00:04.8]} 69. Bf2 {[%clk 0:00:01.7]}
69... b4 {[%clk 0:00:05.7]} 70. Kf1 {[%clk 0:00:01.6]} 70... Ke8 {[%clk
0:00:06.1]} 0-1

[Event "*** Titled Tuesday Blitz"]
[Site "Chess.com"]
[Date "2020.12.29"]
[Round "9"]
[White "horripile"]
[Black "Vuk2000"]
[Result "0-1"]
[WhiteElo "2697"]
[BlackElo "2827"]
[TimeControl "180+1"]
[EndTime "11:46:08 PST"]
[Termination "Vuk2000 won on time"]

1. e4 {[%clk 0:03:00.9]} 1... e6 {[%clk 0:03:00]} 2. d4 {[%clk 0:03:00.6]} 2...
d5 {[%clk 0:03:00.8]} 3. Nd2 {[%clk 0:03:01.3]} 3... Be7 {[%clk 0:03:00.7]} 4.
Ngf3 {[%clk 0:03:01.1]} 4... Nf6 {[%clk 0:03:01.2]} 5. e5 {[%clk 0:03:01.3]}
5... Nfd7 {[%clk 0:03:02]} 6. Bd3 {[%clk 0:03:01.9]} 6... c5 {[%clk 0:03:02.8]}
7. c3 {[%clk 0:03:02.8]} 7... b6 {[%clk 0:03:02.8]} 8. O-O {[%clk 0:03:02.4]}
8... Ba6 {[%clk 0:03:02.7]} 9. Ne1 {[%clk 0:03:03]} 9... Qc8 {[%clk 0:02:59.3]}
10. Qg4 {[%clk 0:03:02.7]} 10... g6 {[%clk 0:02:49.5]} 11. Ndf3 {[%clk
0:03:02.7]} 11... Nc6 {[%clk 0:02:43.6]} 12. a3 {[%clk 0:02:59.7]} 12... h5
{[%clk 0:02:40.9]} 13. Qg3 {[%clk 0:02:57]} 13... Bxd3 {[%clk 0:02:35.1]} 14.
Nxd3 {[%clk 0:02:56.7]} 14... Qa6 {[%clk 0:02:35.9]} 15. Nf4 {[%clk 0:02:56.6]}
15... O-O-O {[%clk 0:02:20.7]} 16. h4 {[%clk 0:02:54.2]} 16... Qa4 {[%clk
0:02:13.4]} 17. Be3 {[%clk 0:02:46]} 17... Kb7 {[%clk 0:02:03.8]} 18. b4 {[%clk
0:02:41.6]} 18... c4 {[%clk 0:01:56.8]} 19. Nh3 {[%clk 0:02:29.1]} 19... Rdf8
{[%clk 0:01:48.5]} 20. Nfg5 {[%clk 0:02:21.3]} 20... Bxg5 {[%clk 0:01:42.2]} 21.
Bxg5 {[%clk 0:02:17]} 21... Qc2 {[%clk 0:00:56.7]} 22. Qe3 {[%clk 0:02:15.1]}
22... Re8 {[%clk 0:00:49.6]} 23. a4 {[%clk 0:02:10.1]} 23... a6 {[%clk
0:00:42.2]} 24. Rfc1 {[%clk 0:02:06.6]} 24... Qf5 {[%clk 0:00:39]} 25. Ra2
{[%clk 0:01:39.7]} 25... Ne7 {[%clk 0:00:38]} 26. Bxe7 {[%clk 0:01:38.6]} 26...
Rxe7 {[%clk 0:00:38]} 27. Ng5 {[%clk 0:01:37.1]} 27... f6 {[%clk 0:00:36.1]} 28.
exf6 {[%clk 0:01:35]} 28... Nxf6 {[%clk 0:00:35.2]} 29. b5 {[%clk 0:01:28.5]}
29... a5 {[%clk 0:00:33.7]} 30. Re1 {[%clk 0:01:24.9]} 30... Rhe8 {[%clk
0:00:27.9]} 31. Rae2 {[%clk 0:01:20.4]} 31... Ng4 {[%clk 0:00:09.2]} 32. Qf3
{[%clk 0:01:10.2]} 32... Qxf3 {[%clk 0:00:04.9]} 33. gxf3 {[%clk 0:01:09]} 33...
Nh6 {[%clk 0:00:05.3]} 34. Nxe6 {[%clk 0:00:57.4]} 34... Nf5 {[%clk 0:00:05.5]}
35. Kh2 {[%clk 0:00:54.6]} 35... Kc8 {[%clk 0:00:04.7]} 36. Kh3 {[%clk
0:00:52.1]} 36... Kd7 {[%clk 0:00:03.3]} 37. Nf4 {[%clk 0:00:51.4]} 37... Rxe2
{[%clk 0:00:03.7]} 38. Rxe2 {[%clk 0:00:52.3]} 38... Rxe2 {[%clk 0:00:03.8]} 39.
Nxe2 {[%clk 0:00:53.2]} 39... Kd6 {[%clk 0:00:02.9]} 40. Nf4 {[%clk 0:00:47.4]}
40... Ne7 {[%clk 0:00:03.1]} 41. Kg3 {[%clk 0:00:39.6]} 41... Nf5+ {[%clk
0:00:02.8]} 42. Kh3 {[%clk 0:00:36.9]} 42... Ne7 {[%clk 0:00:03.2]} 43. Ng2
{[%clk 0:00:32.1]} 43... Ke6 {[%clk 0:00:03.5]} 44. Ne3 {[%clk 0:00:31.1]} 44...
Nf5 {[%clk 0:00:02.2]} 45. Ng2 {[%clk 0:00:18.8]} 45... Ne7 {[%clk 0:00:02.5]}
46. Kg3 {[%clk 0:00:19.3]} 46... Kf5 {[%clk 0:00:03]} 47. Kh2 {[%clk 0:00:17.9]}
47... Kf6 {[%clk 0:00:03]} 48. Kg3 {[%clk 0:00:17.6]} 48... Kf5 {[%clk 0:00:03]}
49. Ne3+ {[%clk 0:00:17.7]} 49... Ke6 {[%clk 0:00:03.6]} 50. Kf4 {[%clk
0:00:17.7]} 50... Kf6 {[%clk 0:00:04.2]} 51. Nf1 {[%clk 0:00:11.8]} 51... Nf5
{[%clk 0:00:04.7]} 52. Ne3 {[%clk 0:00:11.4]} 52... Ne7 {[%clk 0:00:04.9]} 53.
Kg3 {[%clk 0:00:10.8]} 53... Ke6 {[%clk 0:00:04.9]} 54. f4 {[%clk 0:00:10.7]}
54... Nf5+ {[%clk 0:00:04.9]} 55. Kh3 {[%clk 0:00:09.4]} 55... Nd6 {[%clk
0:00:04.2]} 56. f3 {[%clk 0:00:08.4]} 56... Nf5 {[%clk 0:00:04.5]} 57. Nf1
{[%clk 0:00:07.6]} 57... Kf6 {[%clk 0:00:04.5]} 58. Ng3 {[%clk 0:00:03.6]} 58...
Ne3 {[%clk 0:00:04.5]} 59. Ne2 {[%clk 0:00:02.4]} 59... Kf5 {[%clk 0:00:05.1]}
60. Ng3+ {[%clk 0:00:01.5]} 60... Kxf4 {[%clk 0:00:04.9]} 61. Ne2+ {[%clk
0:00:01.7]} 61... Kxf3 {[%clk 0:00:05.4]} 62. Ng1+ {[%clk 0:00:01.8]} 62... Kf4
{[%clk 0:00:05.9]} 63. Ne2+ {[%clk 0:00:02]} 63... Kf3 {[%clk 0:00:06.4]} 64.
Ng1+ {[%clk 0:00:02.4]} 64... Kf2 {[%clk 0:00:07]} 65. Kh2 {[%clk 0:00:02]}
65... Ng4+ {[%clk 0:00:07.7]} 66. Kh1 {[%clk 0:00:02.6]} 66... Kg3 {[%clk
0:00:08]} 67. Ne2+ {[%clk 0:00:02.4]} 67... Kf3 {[%clk 0:00:08.6]} 68. Ng1+
{[%clk 0:00:02.4]} 68... Ke4 {[%clk 0:00:08.3]} 69. Kg2 {[%clk 0:00:02.1]} 69...
Kd3 {[%clk 0:00:08.5]} 70. Nf3 {[%clk 0:00:01.1]} 70... Kxc3 {[%clk 0:00:09]}
71. Ne5 {[%clk 0:00:01.6]} 71... Kxd4 {[%clk 0:00:09.7]} 0-1

[Event "*** Titled Tuesday Blitz"]
[Site "Chess.com"]
[Date "2020.12.29"]
[Round "9"]
[White "Skat2704"]
[Black "davidkalashian"]
[Result "1/2-1/2"]
[WhiteElo "2395"]
[BlackElo "2564"]
[TimeControl "180+1"]
[EndTime "11:46:19 PST"]
[Termination "Game drawn by stalemate"]

1. d4 {[%clk 0:03:00.9]} 1... Nf6 {[%clk 0:02:55.4]} 2. c4 {[%clk 0:03:00.5]}
2... e6 {[%clk 0:02:55.3]} 3. Nf3 {[%clk 0:03:00]} 3... b6 {[%clk 0:02:55.2]} 4.
g3 {[%clk 0:02:59.6]} 4... Ba6 {[%clk 0:02:55.5]} 5. Qc2 {[%clk 0:02:58.8]} 5...
Bb4+ {[%clk 0:02:55.6]} 6. Bd2 {[%clk 0:02:56.1]} 6... Be7 {[%clk 0:02:55.8]} 7.
Bg2 {[%clk 0:02:55.6]} 7... c6 {[%clk 0:02:55.6]} 8. O-O {[%clk 0:02:55]} 8...
O-O {[%clk 0:02:55.8]} 9. Ne5 {[%clk 0:02:54]} 9... d5 {[%clk 0:02:55.3]} 10.
cxd5 {[%clk 0:02:49.5]} 10... cxd5 {[%clk 0:02:56.2]} 11. Nc3 {[%clk 0:02:49.3]}
11... Nfd7 {[%clk 0:02:54.7]} 12. Nd3 {[%clk 0:02:45.5]} 12... Nc6 {[%clk
0:02:53.8]} 13. Qa4 {[%clk 0:02:38.4]} 13... Qc8 {[%clk 0:02:41.4]} 14. Rfc1
{[%clk 0:02:35.3]} 14... Qb7 {[%clk 0:02:39.5]} 15. Be3 {[%clk 0:02:24.1]} 15...
Rac8 {[%clk 0:02:31.7]} 16. Rab1 {[%clk 0:02:18.9]} 16... Na5 {[%clk 0:02:26.8]}
17. b4 {[%clk 0:02:14.9]} 17... Rc4 {[%clk 0:02:16.6]} 18. Qd1 {[%clk
0:02:04.2]} 18... Rxc3 {[%clk 0:02:02.9]} 19. Rxc3 {[%clk 0:02:00.9]} 19... Bxd3
{[%clk 0:02:03.1]} 20. exd3 {[%clk 0:01:57.5]} 20... Nc6 {[%clk 0:02:02.9]} 21.
a3 {[%clk 0:01:56]} 21... Bd6 {[%clk 0:01:59.7]} 22. Rbc1 {[%clk 0:01:50.4]}
22... Ne7 {[%clk 0:01:58.1]} 23. R1c2 {[%clk 0:01:47.9]} 23... h6 {[%clk
0:01:53.1]} 24. Qc1 {[%clk 0:01:47.4]} 24... Nf6 {[%clk 0:01:51.9]} 25. Rc7
{[%clk 0:01:44]} 25... Qa6 {[%clk 0:01:45.2]} 26. R7c3 {[%clk 0:01:36.2]} 26...
Nf5 {[%clk 0:01:45.1]} 27. h3 {[%clk 0:01:31.2]} 27... Qa4 {[%clk 0:01:39.5]}
28. Bf3 {[%clk 0:01:23.2]} 28... a5 {[%clk 0:01:36]} 29. bxa5 {[%clk 0:01:16.5]}
29... bxa5 {[%clk 0:01:36.9]} 30. Kg2 {[%clk 0:01:16.4]} 30... Kh7 {[%clk
0:01:35]} 31. Qb2 {[%clk 0:01:10.8]} 31... Bxg3 {[%clk 0:01:26.7]} 32. Bg4
{[%clk 0:01:04.4]} 32... Bd6 {[%clk 0:00:49.4]} 33. Bxf5+ {[%clk 0:01:00.7]}
33... exf5 {[%clk 0:00:50.3]} 34. Rc6 {[%clk 0:00:57]} 34... Bb8 {[%clk
0:00:41.9]} 35. Rc8 {[%clk 0:00:55.5]} 35... Rxc8 {[%clk 0:00:41]} 36. Rxc8
{[%clk 0:00:55]} 36... Bd6 {[%clk 0:00:41.9]} 37. Qb6 {[%clk 0:00:52.9]} 37...
Qxa3 {[%clk 0:00:39.2]} 38. Qd8 {[%clk 0:00:48]} 38... Kg6 {[%clk 0:00:37.7]}
39. Rc6 {[%clk 0:00:43.1]} 39... f4 {[%clk 0:00:35.3]} 40. Qxd6 {[%clk
0:00:40.1]} 40... Qxd6 {[%clk 0:00:30.4]} 41. Rxd6 {[%clk 0:00:39.9]} 41... fxe3
{[%clk 0:00:31.3]} 42. fxe3 {[%clk 0:00:39.8]} 42... Kf5 {[%clk 0:00:31.2]} 43.
Ra6 {[%clk 0:00:39.4]} 43... g5 {[%clk 0:00:29.4]} 44. Rxa5 {[%clk 0:00:38.4]}
44... Ke6 {[%clk 0:00:29.8]} 45. Ra6+ {[%clk 0:00:37.8]} 45... Ke7 {[%clk
0:00:27.5]} 46. Kf3 {[%clk 0:00:37.3]} 46... h5 {[%clk 0:00:25.7]} 47. e4 {[%clk
0:00:37.1]} 47... g4+ {[%clk 0:00:25.2]} 48. hxg4 {[%clk 0:00:37]} 48... hxg4+
{[%clk 0:00:26.1]} 49. Kf4 {[%clk 0:00:37.1]} 49... g3 {[%clk 0:00:25]} 50. e5
{[%clk 0:00:36.6]} 50... Nh5+ {[%clk 0:00:22.9]} 51. Kf3 {[%clk 0:00:36.2]}
51... f6 {[%clk 0:00:23.4]} 52. Ra7+ {[%clk 0:00:33.4]} 52... Ke6 {[%clk
0:00:19.9]} 53. Rh7 {[%clk 0:00:32.8]} 53... g2 {[%clk 0:00:18.9]} 54. Kxg2
{[%clk 0:00:32.3]} 54... Nf4+ {[%clk 0:00:19.1]} 55. Kf3 {[%clk 0:00:31.8]}
55... Nxd3 {[%clk 0:00:19]} 56. Rh6 {[%clk 0:00:31.6]} 56... Ne1+ {[%clk
0:00:13.5]} 57. Ke2 {[%clk 0:00:31.3]} 57... Nc2 {[%clk 0:00:13.3]} 58. Rxf6+
{[%clk 0:00:31]} 58... Ke7 {[%clk 0:00:13.9]} 59. Kd3 {[%clk 0:00:30.5]} 59...
Nb4+ {[%clk 0:00:13.5]} 60. Kd2 {[%clk 0:00:30.4]} 60... Kd7 {[%clk 0:00:12.7]}
61. Rd6+ {[%clk 0:00:29.3]} 61... Kc7 {[%clk 0:00:13.2]} 62. Kc3 {[%clk
0:00:28.8]} 62... Nc6 {[%clk 0:00:11.7]} 63. Rxc6+ {[%clk 0:00:27.2]} 63... Kxc6
{[%clk 0:00:11.6]} 64. Kb4 {[%clk 0:00:27.3]} 64... Kb6 {[%clk 0:00:12.5]} 65.
e6 {[%clk 0:00:27.2]} 65... Kc6 {[%clk 0:00:12.9]} 66. Ka5 {[%clk 0:00:21.2]}
66... Kd6 {[%clk 0:00:12.5]} 67. Kb6 {[%clk 0:00:21]} 67... Kxe6 {[%clk
0:00:12.7]} 68. Kc5 {[%clk 0:00:20.9]} 68... Ke7 {[%clk 0:00:12.9]} 69. Kxd5
{[%clk 0:00:20.9]} 69... Kd7 {[%clk 0:00:13.4]} 70. Kc5 {[%clk 0:00:21.1]} 70...
Kc7 {[%clk 0:00:13.8]} 71. d5 {[%clk 0:00:21.3]} 71... Kd7 {[%clk 0:00:14]} 72.
d6 {[%clk 0:00:21.2]} 72... Kd8 {[%clk 0:00:14.3]} 73. Kc6 {[%clk 0:00:21]}
73... Kc8 {[%clk 0:00:14.7]} 74. d7+ {[%clk 0:00:21.2]} 74... Kd8 {[%clk
0:00:15.1]} 75. Kd6 {[%clk 0:00:21.3]} 1/2-1/2